Cogmind - Beta 15 @@@ ROGUE MODE // 2025.07.05 @ 17:26:50 Player: EX-OCT Result: Destroyed by D-53 Grenadier with Mini Grenade Launcher Performance ------------- Evolutions (0) 0 Regions Visited (4) 800 Robots Destroyed (17) 85 Value Destroyed (372) 372 Prototype IDs (25) 500 Alien Tech Used (0) 0 Bonus (-28) -28 TOTAL SCORE: 1729 Bonus ------- Follower Combat Kills 7 Friendly Fire -35 Cogmind --------- Core Integrity 0/250 Matter 250/300 Energy 81/100 System Corruption 0% Temperature Cool (44) Movement Walking (190) Ox1 Location -9/Mines Parts ------- > --- POWER (1) -------- (None) > --- PROPULSION (2) --- Aluminum Leg > --- UTILITY (2) ------ Medium Storage Unit Splice Drone Bay (5/6) > --- WEAPON (2) ------- (None) > --- INVENTORY (10) --- Fission Core Heat Sink Improved Heat Sink Structural Scanner Phase Shifter Makeshift Hacking Suite Recalibrator Makeshift Sword Peak State ------------ > --- POWER ------------ Light Ion Engine > --- PROPULSION ------- Aluminum Leg Aluminum Leg > --- UTILITY ---------- Machine Analyzer Splice Drone Bay > --- WEAPON ----------- Improved Medium Laser Improved Medium Laser > --- INVENTORY -------- Structural Scanner Recalibrator Particle Gun Improved Medium Laser Mining Laser [Rating: 20] Favorites ----------- Power Light Ion Engine Engine Light Ion Engine Power Core Fission Core Propulsion Aluminum Leg Leg Aluminum Leg Utility Machine Analyzer Device Structural Scanner Storage Medium Storage Unit Processor Machine Analyzer Weapon Improved Medium Laser Energy Gun Improved Medium Laser Ballistic Gun Light Assault Rifle Ballistic Cannon Light Cannon Launcher Rocket Launcher Slashing Weapon Makeshift Sword Build | -11 -10 -10 -10 -9 ------- Run | Yrd Mat Min Exi Min Slots Evolved . | . . . . . Power . | . . . . . Propulsion . | . . . . . Utility . | . . . . . Weapon . | . . . . . Parts Attached 30 | 6 10 4 3 7 Power 5 | 1 1 1 . 2 Engine 4 | 1 1 1 . 1 Core 1 | . . . . 1 Reactor . | . . . . . Propulsion 7 | 2 1 1 1 2 Treads . | . . . . . Leg 7 | 2 1 1 1 2 Wheel . | . . . . . Hover . | . . . . . Flight . | . . . . . Utility 6 | 1 2 2 1 . Device 4 | 1 1 2 . . Storage 1 | . . . 1 . Processor 1 | . 1 . . . Hackware . | . . . . . Protection . | . . . . . Artifact . | . . . . . Weapon 12 | 2 6 . 1 3 Energy Gun 6 | 1 4 . . 1 Energy Cannon . | . . . . . Ballistic Gun 2 | 1 . . . 1 Ballistic Cannon 2 | . 2 . . . Launcher 1 | . . . . 1 Special Weapon . | . . . . . Impact Weapon . | . . . . . Slashing Weapon 1 | . . . 1 . Piercing Weapon . | . . . . . Special Melee Weapon . | . . . . . Unidentified Prototypes 2 | . 1 1 . . Parts Lost 8 | . 1 . . 7 Power 3 | . 1 . . 2 Propulsion 2 | . . . . 2 Utility . | . . . . . Weapon 3 | . . . . 3 Highest Loss Streak 4 | . 1 . . 4 To Critical Strikes . | . . . . . Average Backups 5 | 1 4 5 7 9 Power . | . . . . . Propulsion . | . . . . . Utility 2 | . . 1 4 6 Weapon 2 | . 2 2 2 1 Tool/Special . | . . . . . Unused Backups 8 | . 2 2 . 4 Power . | . . . . . Propulsion . | . . . . . Utility 4 | . . . . 4 Weapon 4 | . 2 2 . . Tool/Special . | . . . . . Average Slot Usage (%) 98 | . 99 99 100 93 Engine 13 | . 13 14 14 10 Leg 27 | . 28 28 28 27 Device 10 | . 14 13 6 . Storage 3 | . . . 7 14 Processor 13 | . 13 14 14 13 Energy Gun 20 | . 18 28 16 20 Ballistic Gun 1 | . 2 . . 3 Ballistic Cannon 2 | . 6 . . . Slashing Weapon 3 | . . . 12 . Peak Build Rating 20 | 6 14 20 17 17 Average Rating 13 | 4 11 14 15 15 On Entrance 10 | . 6 14 14 17 Naked Turns . | . . . . . Heaviest Build 24 | 8 12 10 18 24 Greatest Support 20 | 20 20 20 20 20 Greatest Overweight (x) 1 | 1 . . . 1 Average Overweight (x) . | . . . . . Largest Inventory Capacity 10 | 5 5 5 10 10 Average Capacity 6 | 5 5 5 7 10 Most Carried 10 | 2 5 5 10 10 Average Carried 5 | 1 4 4 7 9 Final Capacity 10 | 5 5 5 10 10 Final Carried 10 | 2 5 5 10 8 Class Distribution -------------------- 60% | Mutant 39% | Scavenger-Mutant Dominant Class ---------------- Mutant | -10/Materials Mutant | -10/Mines Scavenger-Mutant | -10/Exiles Scavenger-Mutant | -9/Mines Resources | -11 -10 -10 -10 -9 ----------- Run | Yrd Mat Min Exi Min Matter Collected 630 | 266 177 45 30 112 Remotely . | . . . . . Salvage Created 678 | 123 224 93 130 108 Parts 35 | 6 10 2 9 8 Haulers Intercepted . | . . . . . Recyclers Shooed 1 | . . 1 . . Parts Field Recycled . | . . . . . Retrieved Matter . | . . . . . Parts Self-Destructed . | . . . . . Prevented . | . . . . . Kills | -11 -10 -10 -10 -9 ------- Run | Yrd Mat Min Exi Min Combat Hostiles Destroyed 30 | . 7 2 . 21 Guns 13 | . 6 2 . 5 Cannons 1 | . 1 . . . AOE 16 | . . . . 16 Classes Destroyed 7 | 2 4 . . 1 Tunneler 1 | 1 . . . . Recycler 1 | 1 . . . . Mechanic 1 | . 1 . . . Watcher 1 | . 1 . . . Swarmer 6 | . 3 . . 3 Grunt 7 | . 4 2 . 1 Assembled 18 | . . . . 18 Best Kill Streak 18 | 2 4 2 . 18 Combat Bots Only 18 | . 3 2 . 18 Max Kills in Single Turn 6 | 1 1 1 . 6 Gunslinging . | . . . . . Exploded 5 | . . . . 5 Melee . | . . . . . Uniques/NPCs Destroyed . | . . . . . Combat | -11 -10 -10 -10 -9 -------- Run | Yrd Mat Min Exi Min Hostile Shots Fired 98 | . 61 8 . 29 Missed 25 | . 16 3 . 6 Hits 73 | . 45 5 . 23 Melee 2 | . . . . 2 Projectile 71 | . 45 5 . 21 AOE 11 | . . . . 11 Damage Taken 1293 | . 477 72 . 744 Core 255 | . 92 . . 163 Absorbed by Shields . | . . . . . Core Remaining (%) 100 | 100 . . . . Volleys Fired 60 | 6 35 6 . 13 Largest 2 | 2 2 2 . 2 Hottest 112 | 60 112 112 . 112 Shots Fired 119 | 12 70 12 . 25 Gun 102 | 12 59 12 . 19 Cannon 11 | . 11 . . . Launcher 6 | . . . . 6 Special . | . . . . . Kinetic 49 | 6 34 . . 9 Thermal 64 | 6 36 12 . 10 Explosive 6 | . . . . 6 Electromagnetic . | . . . . . Robot Hit Streak 14 | 8 14 4 . 3 Robot Miss Streak 7 | 1 4 1 . 7 Penetration Max . | . . . . . Secondary Targets 1 | . 1 . . . Max Gunslinging Chain 1 | . 1 . . . Shots Hit Robots 82 | 10 48 8 3 13 Core Hits 65 | 3 17 4 2 39 Critical Kills . | . . . . . Critical Parts Destroyed . | . . . . . Critical Strikes 2 | . 1 1 . . Burn 1 | . . 1 . . Blast 1 | . 1 . . . Melee Attacks 3 | . . . 3 . Impact . | . . . . . Slashing 3 | . . . 3 . Piercing . | . . . . . Sneak Attacks . | . . . . . Combat Hostiles . | . . . . . Follow-up Attacks . | . . . . . Damage Inflicted 2191 | 96 618 158 239 1080 Guns 895 | 96 436 140 . 223 Cannons 182 | . 182 . . . Explosions 856 | . . . . 856 Melee 239 | . . . 239 . Ramming 19 | . . 18 . 1 Kinetic 523 | 42 325 . . 156 Thermal 554 | 54 293 140 . 67 Explosive 856 | . . . . 856 Electromagnetic . | . . . . . Impact . | . . . . . Slashing 239 | . . . 239 . Piercing . | . . . . . Highest Corruption . | . . . . . Average Corruption . | . . . . . Corruption Purged . | . . . . . Corruption Blocked . | . . . . . Overload Shots . | . . . . . Overflow Damage 59 | . . . 55 4 Projectiles . | . . . . . Explosions 4 | . . . . 4 Melee 55 | . . . 55 . Knockbacks 9 | . 9 . . . Impact . | . . . . . Kinetic 8 | . 8 . . . Secondary 1 | . 1 . . . Self-Inflicted Damage 87 | . . . . 87 Shots 3 | . . . . 3 Rammed . | . . . . . Targets Rammed 7 | . . 6 . 1 Kicked 7 | . . 6 . 1 Crushed . | . . . . . Highest Temperature 425 | 40 425 333 . 118 Average Temperature 109 | 19 122 175 . 43 Received Heat Transfer 276 | . 174 42 . 60 Effects 6 | . 4 2 . . Energy Bleed 3 | . 1 2 . . Interference 3 | . 3 . . . Siege Activations . | . . . . . Martial Activations . | . . . . . Shielding Activations . | . . . . . Robots Disrupted . | . . . . . Combat Hostiles . | . . . . . Robots Corrupted . | . . . . . Combat Hostiles . | . . . . . Parts Fried . | . . . . . Impact Corruptions . | . . . . . Robots Melted . | . . . . . Combat Hostiles . | . . . . . Parts Melted 1 | . 1 . . . Heat Transferred 1263 | 125 620 370 . 148 Parts Sabotaged . | . . . . . Parts Stolen . | . . . . . Parts Stripped . | . . . . . Power Chain Reactions . | . . . . . Alert | -11 -10 -10 -10 -9 ------- Run | Yrd Mat Min Exi Min Maximum Alert Level . | . . . . . Low Security (%) 100 | 100 100 100 . 100 Level 1 . | . . . . . Level 2 . | . . . . . Level 3 . | . . . . . Level 4 . | . . . . . Level 5 . | . . . . . High Security . | . . . . . Max Security . | . . . . . Peak Influence 122 | 5 91 42 . 122 Initial . | . . . . . Average 21 | 1 23 3 . 63 Influence Increases 566 | 10 304 56 15 181 Destroy 0b10 Robot/C 260 | . 140 40 . 80 Destroy 0b10 Robot/NC 35 | 10 10 . 15 . Destroy Leader 52 | . 32 10 . 10 Allied During Kill 2 | . . . . 2 Successful Hack 38 | . 32 6 . . Select Force Hacks 30 | . 30 . . . Disable Machine 60 | . 15 . . 45 Destroy Structure 44 | . . . . 44 Lose Combat Pursuer 45 | . 45 . . . Influence Decreases 566 | 10 304 56 15 181 Time Decay 477 | 10 256 56 15 140 Lost Part 41 | . 10 . . 31 Lost Ally 10 | . . . . 10 Purge Threat 38 | . 38 . . . Squads Dispatched 2 | . 2 . . . Investigation 1 | . 1 . . . Extermination . | . . . . . Reinforcement 1 | . 1 . . . Assault . | . . . . . Garrison . | . . . . . Intercept . | . . . . . Searches Triggered . | . . . . . Construction Impeded . | . . . . . Haulers Reinforced . | . . . . . Active Scanning Responses . | . . . . . Cargo Convoy Interrupts . | . . . . . Stealth | -11 -10 -10 -10 -9 --------- Run | Yrd Mat Min Exi Min Distress Signals 1 | . 1 . . . Communications Jammed . | . . . . . Distress Signals . | . . . . . Times Spotted 43 | . 17 2 . 24 Peak Tracking Total 13 | . 4 2 . 13 Tactical Retreats 3 | . 3 . . . Traps | -11 -10 -10 -10 -9 ------- Run | Yrd Mat Min Exi Min Traps Triggered . | . . . . . Indirectly . | . . . . . Trap Hack Attempts . | . . . . . Triggered . | . . . . . Disarmed . | . . . . . Reprogrammed . | . . . . . Reused . | . . . . . Traps Extracted . | . . . . . Installed . | . . . . . Triggered . | . . . . . Machines | -11 -10 -10 -10 -9 ---------- Run | Yrd Mat Min Exi Min Machines Disabled 4 | . 1 . . 3 Max in Single Turn 1 | . 1 . . 1 Machines Repaired . | . . . . . Machines Dismantled . | . . . . . Machines Sabotaged . | . . . . . Overloaded Fab Kills . | . . . . . Hacking | -11 -10 -10 -10 -9 --------- Run | Yrd Mat Min Exi Min Machines Accessed 13 | . 9 2 2 . Terminals 8 | . 7 1 . . Fabricators . | . . . . . Repair Stations . | . . . . . Recycling Units 2 | . 2 . . . Scanalyzers . | . . . . . Garrison Access . | . . . . . Total Hacks 42 | . 34 3 5 . Successful 26 | . 19 2 5 . Failed 16 | . 15 1 . . Catastrophic 2 | . 2 . . . Database Lockouts . | . . . . . Manual 34 | . 31 2 1 . Terminals 32 | . 30 2 . . Fabricators . | . . . . . Repair Stations . | . . . . . Recycling Units 4 | . 4 . . . Scanalyzers . | . . . . . Garrison Access . | . . . . . Terminal Hacks 13 | . 6 2 5 . Record 4 | . . . 4 . Part Schematic 1 | . . 1 . . Robot Analysis 4 | . 4 . . . Open Door 1 | . . 1 . . Unreport Threat 1 | . 1 . . . Zone Layout 1 | . 1 . . . Proto ID Catalog 1 | . . . 1 . Fabricator Hacks . | . . . . . Repair Station Hacks . | . . . . . Recycling Unit Hacks . | . . . . . Scanalyzer . | . . . . . Garrison Access Hacks . | . . . . . Unauthorized Hacks 13 | . 13 . . . Terminals 12 | . 12 . . . Assimilate 1 | . 1 . . . Botnet 5 | . 5 . . . Operators 1 | . 1 . . . Skim 5 | . 5 . . . Fabricators . | . . . . . Repair Stations . | . . . . . Recycling Units 1 | . 1 . . . Tunnel 1 | . 1 . . . Scanalyzers . | . . . . . Garrison Access . | . . . . . Data Cores Recovered . | . . . . . Used . | . . . . . Hacking Detections 9 | . 8 1 . . Full Trace Events 1 | . 1 . . . Feedback Events . | . . . . . Feedback Blocked . | . . . . . Robot Schematics Acquired . | . . . . . Robots Built . | . . . . . Authchips . | . . . . . Time . | . . . . . Total Robot Build Rating . | . . . . . Part Schematics Acquired 1 | . . 1 . . Parts Built . | . . . . . Authchips . | . . . . . Time . | . . . . . Total Part Build Rating . | . . . . . Parts Repaired . | . . . . . Time . | . . . . . Parts Recycled . | . . . . . Recycled Matter . | . . . . . Retrieved Matter . | . . . . . Retrieved Components . | . . . . . Parts Scanalyzed . | . . . . . Part Schematics Acquired . | . . . . . Parts Damaged . | . . . . . Bothacking | -11 -10 -10 -10 -9 ------------ Run | Yrd Mat Min Exi Min Used RIF Installer . | . . . . . Robots Hacked . | . . . . . Non-combat . | . . . . . Combat . | . . . . . Robot Hacks Applied . | . . . . . Relay Couplers Released . | . . . . . Fabnet Peak Effective % . | . . . . . Robots Rewired 1 | . . . 1 . Allies Hacked . | . . . . . Hacks Repelled . | . . . . . Allies | -11 -10 -10 -10 -9 -------- Run | Yrd Mat Min Exi Min Total Allies 3 | . 1 . 1 1 Largest Group 2 | . 1 1 2 2 Highest-Rated Group 31 | . 10 10 18 31 Highest-Rated Ally 31 | . 10 10 10 31 Total Orders . | . . . . . Ally Attacks 4 | . . . . 4 Total Damage 40 | . . . . 40 Kills 1 | . . . . 1 Allies Corrupted . | . . . . . Allies Melted . | . . . . . Intel | -11 -10 -10 -10 -9 ------- Run | Yrd Mat Min Exi Min Active Infowar (turns) 2817 | 10 1010 746 755 296 Structural 1287 | . 879 408 . . Seismic 140 | 10 130 . . . Machine Analysis 2761 | . 964 746 755 296 Robot Analysis Total 4 | . 4 . . . Derelict Logs Recovered 2 | . . 2 . . Drone Launches 1 | . . . . 1 Drone Recoveries . | . . . . . Exploration | -11 -10 -10 -10 -9 ------------- Run | Yrd Mat Min Exi Min Turns Passed 2890 | 80 1010 746 755 299 Spaces Moved 1860 | 46 424 584 603 203 Core 7 | 7 . . . . Treads . | . . . . . Legs 1853 | 39 424 584 603 203 Wheels . | . . . . . Hover . | . . . . . Flight . | . . . . . Fastest Speed 50 | 50 120 120 120 120 Average Speed 119 | 114 120 120 120 121 Slowest Speed 190 | 120 120 120 120 190 Overloaded Moves . | . . . . . Propulsion Burnouts . | . . . . . Robots Hopped . | . . . . . Potential Cave-ins . | . . . . . Cave-ins Triggered . | . . . . . Exploration Rate (%) 62 | 4 78 93 89 46 Regions Visited 4 Branch Regions 3 Pre-discovered Areas 5 | . 2 2 1 . Known Exits Taken 1 | . 1 . . . Unknown Exits Taken 3 | 1 . 1 1 . Scrap Searched 1 | . . 1 . . Spaces Dug . | . . . . . Terrain Destroyed 49 | . . . . 49 Melee . | . . . . . Projectile . | . . . . . AOE 49 | . . . . 49 Terrain Rammed . | . . . . . Walls Destroyed . | . . . . . Machines Disabled . | . . . . . Actions | -11 -10 -10 -10 -9 --------- Run | Yrd Mat Min Exi Min Total 2401 | 59 861 618 632 231 Wait 384 | . 375 9 . . Move 1856 | 45 423 583 602 203 Hop . | . . . . . Pick Up 16 | 2 6 2 5 1 Fast Attach 19 | 6 7 3 1 2 Attach 4 | . 1 . . 3 Detach 3 | . 1 1 . 1 Swap 11 | . 3 2 2 4 Drop 21 | . 10 6 2 3 Fire 60 | 6 35 6 . 13 Melee 3 | . . . 3 . Ram . | . . . . . Kick 7 | . . 6 . 1 Crush . | . . . . . Escape Stasis . | . . . . . Rewire 17 | . . . 17 . Trap . | . . . . . Miscellaneous . | . . . . . Route ------- -11/Scrapyard -10/Materials (discovered 6 exits: *Mat x3 / *Min x2 / Sub) -10/Mines (discovered 4 exits: *Mat x2 / *Exi / Sub) -10/Exiles (discovered 2 exits: [*Min x2]) -9/Mines History --------- Turn | Location | Event 10 | -11/Scrapyard | Discovered new exit (range 15) 81 | -11/Scrapyard | Entered Materials 307 | -10/Materials | Build established: Mutant 422 | -10/Materials | Discovered new exit (range 6) 473 | -10/Materials | Discovered new exit (range 10) 473 | -10/Materials | Discovered new exit (range 13) 647 | -10/Materials | Discovered new exit (range 8) 724 | -10/Materials | Identified exit to Mines 724 | -10/Materials | Identified exit to Materials 724 | -10/Materials | Learned location of 1 exit from Materials 853 | -10/Materials | Learned location of 2 exits from Mines 903 | -10/Materials | Learned location of 2 exits from Subcaves 943 | -10/Materials | Learned location of 2 exits from Subcaves 972 | -10/Materials | Loaded intel: 27 non-interactive machine locations 1012 | -10/Materials | Learned 2 Storage zone layouts 1091 | -10/Materials | Entered Mines 1091 | -10/Mines | Accompanied by 1 ally 1092 | -10/Mines | Identified exit to Subcaves 1105 | -10/Mines | Learned location of Zion (-6) 1193 | -10/Mines | Met a Derelict bent on vengeance 1217 | -10/Mines | Found a damaged Exp. Sensor Array with a note attached 1260 | -10/Mines | Learned Materials terminal intel 1585 | -10/Mines | Found the Drone Emporium 1593 | -10/Mines | Found Prototype Device 1593 | -10/Mines | Identified Splice Drone Bay 1656 | -10/Mines | Found a hidden stash of uninstalled traps 1664 | -10/Mines | Received a Rocket Launcher from a helpful Derelict 1800 | -10/Mines | Build established: Scavenger-Mutant 1825 | -10/Mines | Deemed a non-threat by the Exiles lab entrance 1825 | -10/Mines | Discovered new exit (range 5) 1837 | -10/Mines | Entered Exiles 1837 | -10/Exiles | Found Exiles lab destroyed 1837 | -10/Exiles | Accompanied by 1 ally 1857 | -10/Exiles | Discovered new exit (range 15) 2203 | -10/Exiles | Discovered new exit (range 14) 2418 | -10/Exiles | Opened EX-Vault 2592 | -10/Exiles | Entered Mines 2592 | -9/Mines | Accompanied by 2 allies 2630 | -9/Mines | Assembled infested the area 2635 | -9/Mines | Assisted by a Guerilla fighting off Assembled 2692 | -9/Mines | Destroyed 18 combat bots 2699 | -9/Mines | Lost 3 parts (1p1n1w) 2777 | -9/Mines | Received a Mining Laser from a helpful Derelict 2886 | -9/Mines | Core integrity fell below 50% 2891 | -9/Mines | Destroyed by D-53 Grenadier with Mini Grenade Launcher Last Messages --------------- 02783_ QP-0DF(g): "Mining lasers are a lot more useful than you might think..." 02784_ U-05 Engineer lays Concrete. 02785_ U-05 Engineer builds a Wall. 02818_ T-07 Excavator is excavating. 02822_ K-01 Serf collects debris. 02826_ T-07 Excavator is excavating. 02830_ K-01 Serf collects debris. 02881_ Lgt. Ion Engine destroyed. 02882_ The unstable cave ceiling collapses. 02883_ Aluminum Leg destroyed. 02883_ QP-0DF(g) destroyed. 02888_ Imp. Medium Laser destroyed. 02888_ Discarded Machine Analyzer. 02890_ The unstable cave ceiling collapses. 02891_ Splice Drone released from Splice Drone Bay. 02891_ Splice Drone sneak attacks. 02891_ Splice Drone injecting D-53 Grenadier... Deactivating 1 weapon system. Map ----- +----------------------------------------------------+ | ???????????????????????????????? | | ???????????????????????????????? | | ???????????????????????????????? | | ???????????????????????????????? | | ???????????????????????????????? | | ???????????????????????????????? | | ???????????????????????????????? | | ???????????????????????????????? | | ???????????????????????????????? | | ???????????????????????????????? | | ????????????????????????? ????? | | ????????????????????????? #???? | | ????????????????????????? #???? | | ????????????????????????# #???? | | ????????????????????????# #???? | | ????????????????????????# #???? | | ????????????????????????# #???? | | ????????????????????????# #???? | | ????????????????????????# #???? | | ????????????????????????# #???? | | ??????????????????????###$ ###?? | | ??????????????#??????## ##? | | ??????????????# ???## ## | | ???????????????# ## # | | ??????????????## d | | ??????????????# dn @ # | | ?????????????# ## | | ????????????# ?????# | | ?????????????????????## = # | | ??????????????????????## # | | ???????????????????????## ### | | ?????????????????????#### ###?? | | ?????????????????????# #???? | | ?????????????????????# #???? | | ?????????????????????# ####???? | | ?????????????????????# #??????? | | ?????????????????????# #??????? | | ????????????? ??????# #??????? | | ????????????? ??????# #??????? | | ????????????? ??????# #??????? | | ????????????# #?????# #??????? | | ????????????# #?????# #??????? | | ????????????# #?????# #??????? | | ????????????# #????## #??????? | | ????????????# #???## #??????? | | ????????????# #??## #??????? | | ????####????# #?## #??????? | | ????# #????# #?# #??????? | | ????# #????# ### #??????? | | ????# #????# ## #??????? | +----------------------------------------------------+ Best States ------------- Heat Dissipation 35 Energy Generation 10 Energy Capacity 250 Matter Stores 300 Matter Capacity 300 Sight Range 16 Terrain Scan Density 10 Evasion (%) 55 Item Schematics ----------------- ECM Suite | -10/Mines | Hacked Robot Schematics ------------------ None Fabricated ------------ Nothing Repaired ---------- Nothing Alien Tech Used ----------------- None Achievements -------------- None Challenges ------------ None Game ------ Seed DeflectorScatterRail Manual? 0 Play Time 00:20:10 Cumulative 305.7 hours Start 2025.07.05 @ 17:05:23 End 2025.07.05 @ 17:26:50 Sessions 1 Manual Loads 0 Difficulty Rogue Special Mode None Game No. 149 Rogue 149 Adventurer 0 Explorer 0 Win Type - Total 21 Types 8/1/5/1/4/1/0/0/0/1 Lore% 87 Gallery% 76 Achievement% 75 Wizard Run 0 Options --------- Layout 1 ASCII 0 Keyboard 0 Movement Numpad Keybinds 0 Fullscreen 1 Font 24/Smallcaps Map View 50x35 Zoom Use 0% Tactical HUD 1 Map Filters NONE Filters NONE Steam 1 RUN: ca4e8178-0b9d-4ee6-87ae-857172396e3c